Cogmind - Beta 13 @@@ ROGUE MODE // 2024.04.29 @ 15:03:07 Player: Barbarossa Result: Destroyed by G-47 Trooper with Particle Gun Performance ------------- Evolutions (2) 1000 Regions Visited (3) 600 Robots Destroyed (27) 135 Value Destroyed (724) 724 Prototype IDs (1) 20 Alien Tech Used (0) 0 Bonus (0) 0 TOTAL SCORE: 2479 Bonus ------- None Cogmind --------- Core Integrity 0/550 Matter 115/300 Energy 80/280 System Corruption 0% Temperature Cool (18) Movement Rolling (105) Ox1 Location -8/Materials Parts ------- > --- POWER (1) -------- Heavy Ion Engine > --- PROPULSION (4) --- Armored Wheel > --- UTILITY (3) ------ Small Storage Unit Signal Interpreter > --- WEAPON (3) ------- (None) > --- INVENTORY (8) ---- Improved Deuterium Engine Heat Sink Peak State ------------ > --- POWER ------------ Heavy Ion Engine > --- PROPULSION ------- Light Treads Light Treads Compact Wheel Compact Wheel > --- UTILITY ---------- Small Storage Unit Signal Interpreter Recoil Stabilizer > --- WEAPON ----------- Spread Laser High-powered Shotgun Flak Cannon > --- INVENTORY -------- Heavy Ion Engine Heavy Ion Engine Improved Treads Armored Wheel Armored Wheel Armored Wheel Heat Sink Assault Rifle [Rating: 21] Favorites ----------- Power Improved Ion Engine Engine Improved Ion Engine Propulsion Light Treads Treads Light Treads Leg Aluminum Leg Wheel Compact Wheel Utility Small Storage Unit Device Heat Sink Storage Small Storage Unit Processor Signal Interpreter Weapon Small Laser Energy Gun Small Laser Ballistic Gun Assault Rifle Ballistic Cannon Flak Cannon Build | -11 -10 -9 -8 ------- Run | Yrd Mat Mat Mat Slots Evolved 4 | . . 2 2 Power . | . . . . Propulsion 2 | . . 2 . Utility 1 | . . . 1 Weapon 1 | . . . 1 Parts Attached 32 | . . 14 18 Power 5 | . . 1 4 Engine 5 | . . 1 4 Core . | . . . . Reactor . | . . . . Propulsion 11 | . . 6 5 Treads 4 | . . 3 1 Leg 1 | . . 1 . Wheel 6 | . . 2 4 Hover . | . . . . Flight . | . . . . Utility 3 | . . 2 1 Device 2 | . . 1 1 Storage . | . . . . Processor 1 | . . 1 . Hackware . | . . . . Protection . | . . . . Artifact . | . . . . Weapon 13 | . . 5 8 Energy Gun 7 | . . 5 2 Energy Cannon . | . . . . Ballistic Gun 5 | . . . 5 Ballistic Cannon 1 | . . . 1 Launcher . | . . . . Special Weapon . | . . . . Impact Weapon . | . . . . Slashing Weapon . | . . . . Piercing Weapon . | . . . . Special Melee Weapon . | . . . . Unidentified Prototypes 1 | . . . 1 Parts Lost 15 | . . 1 14 Power 1 | . . . 1 Propulsion 8 | . . 1 7 Utility 1 | . . . 1 Weapon 5 | . . . 5 Highest Loss Streak 14 | . . 1 14 To Critical Strikes 1 | . . . 1 Average Slot Usage (%) 92 | . 85 96 84 Engine 10 | . 14 11 8 Treads 17 | . . 22 14 Leg 16 | . 28 19 . Wheel 5 | . . 1 17 Device 1 | . . 1 2 Storage 10 | . 14 11 9 Processor 6 | . . 6 9 Energy Gun 17 | . 14 19 13 Ballistic Gun 5 | . 14 2 8 Naked Turns . | . . . . Heaviest Build 26 | 13 13 18 26 Greatest Support 32 | 20 20 32 32 Greatest Overweight (x) 1 | . . 1 1 Average Overweight (x) . | . . . . Largest Inventory Capacity 8 | . 8 8 8 Average Capacity 8 | . 8 8 8 Most Carried 8 | . 7 8 8 Average Carried 7 | . 6 7 6 Final Capacity 8 | 8 8 8 8 Final Carried 8 | 6 7 8 2 Class Distribution -------------------- 60% | Scavenger-Mutant 25% | Mutant 7% | Gunner 6% | Scavenger-Gunner Dominant Class ---------------- Mutant | -10/Materials Scavenger-Mutant | -9/Materials Gunner | -8/Materials Resources | -11 -10 -9 -8 ----------- Run | Yrd Mat Mat Mat Matter Collected 481 | 196 37 195 53 Remotely . | . . . . Salvage Created 976 | . 131 698 147 Parts 71 | . 7 52 12 Haulers Intercepted 3 | . 1 1 1 Recyclers Shooed 2 | . . 2 . Parts Field Recycled . | . . . . Retrieved Matter . | . . . . Parts Self-Destructed . | . . . . Prevented . | . . . . Kills | -11 -10 -9 -8 ------- Run | Yrd Mat Mat Mat Combat Hostiles Destroyed 17 | . 2 12 3 Guns 16 | . 2 12 2 Cannons 1 | . . . 1 Classes Destroyed 9 | . 2 4 3 Builder 1 | . . . 1 Hauler 3 | . 1 1 1 Recycler 3 | . . 3 . Watcher 3 | . . 3 . Swarmer 3 | . . 3 . Grunt 11 | . 2 8 1 Sentry 1 | . . 1 . Specialist 1 | . . . 1 Heavy 1 | . . . 1 Best Kill Streak 5 | . 3 5 3 Combat Bots Only 5 | . 2 5 2 Max Kills in Single Turn 1 | . 1 1 1 Gunslinging . | . . . . Exploded . | . . . . Melee . | . . . . Uniques/NPCs Destroyed . | . . . . Combat | -11 -10 -9 -8 -------- Run | Yrd Mat Mat Mat Hostile Shots Fired 227 | . 12 59 156 Missed 60 | . 3 19 38 Damage Taken 2717 | . 124 473 2120 Core 623 | . 18 42 563 Absorbed by Shields . | . . . . Core Remaining (%) 93 | 100 92 89 . Volleys Fired 91 | . 14 60 17 Largest 3 | . 2 2 3 Hottest 174 | . 60 130 174 Shots Fired 190 | . 28 120 42 Gun 181 | . 28 120 33 Cannon 9 | . . . 9 Launcher . | . . . . Special . | . . . . Kinetic 58 | . 14 17 27 Thermal 132 | . 14 103 15 Explosive . | . . . . Electromagnetic . | . . . . Robot Hit Streak 14 | . 9 14 6 Robot Miss Streak 9 | . 3 5 9 Penetration Max . | . . . . Secondary Targets 4 | . . 4 . Max Gunslinging Chain 1 | . . 1 . Shots Hit Robots 128 | . 19 80 29 Core Hits 66 | . 8 34 24 Critical Kills . | . . . . Critical Parts Destroyed 1 | . 1 . . Critical Strikes 1 | . 1 . . Destroy 1 | . 1 . . Melee Attacks . | . . . . Impact . | . . . . Slashing . | . . . . Piercing . | . . . . Sneak Attacks . | . . . . Combat Hostiles . | . . . . Follow-up Attacks . | . . . . Damage Inflicted 1779 | . 228 1045 506 Guns 1629 | . 228 1045 356 Cannons 147 | . . . 147 Explosions . | . . . . Melee . | . . . . Ramming 3 | . . . 3 Kinetic 634 | . 129 178 327 Thermal 1142 | . 99 867 176 Explosive . | . . . . Electromagnetic . | . . . . Impact . | . . . . Slashing . | . . . . Piercing . | . . . . Highest Corruption . | . . . . Average Corruption . | . . . . Corruption Purged . | . . . . Corruption Blocked . | . . . . Overload Shots . | . . . . Overflow Damage . | . . . . Projectiles . | . . . . Explosions . | . . . . Melee . | . . . . Knockbacks 1 | . . . 1 Impact . | . . . . Kinetic 1 | . . . 1 Secondary . | . . . . Self-Inflicted Damage 1 | . . . 1 Shots . | . . . . Rammed 1 | . . . 1 Targets Rammed 1 | . . . 1 Kicked . | . . . . Crushed . | . . . . Highest Temperature 379 | . 45 300 379 Average Temperature 92 | . 25 58 186 Received Heat Transfer 1044 | . 69 225 750 Effects 3 | . . . 3 Interference 1 | . . . 1 Matter Decay 1 | . . . 1 Short Circuit 1 | . . . 1 Siege Activations . | . . . . Robots Corrupted . | . . . . Combat Hostiles . | . . . . Parts Fried . | . . . . Impact Corruptions . | . . . . Robots Melted . | . . . . Combat Hostiles . | . . . . Parts Melted 3 | . . 3 . Heat Transferred 2528 | . 225 2032 271 Parts Sabotaged . | . . . . Parts Stolen . | . . . . Parts Stripped . | . . . . Power Chain Reactions . | . . . . Alert | -11 -10 -9 -8 ------- Run | Yrd Mat Mat Mat Peak Influence 382 | . 87 382 159 Initial 97 | . . 36 97 Average 156 | . 31 192 114 Maximum Alert Level 1 | . . 1 . Low Security (%) 61 | . 100 41 100 Level 1 38 | . . 58 . Level 2 . | . . . . Level 3 . | . . . . Level 4 . | . . . . Level 5 . | . . . . High Security . | . . . . Max Security . | . . . . Squads Dispatched 5 | . 1 1 3 Investigation . | . . . . Extermination . | . . . . Reinforcement 5 | . 1 1 3 Assault . | . . . . Garrison . | . . . . Intercept . | . . . . Searches Triggered . | . . . . Construction Impeded 1 | . . . 1 Haulers Reinforced . | . . . . Active Scanning Responses . | . . . . Cargo Convoy Interrupts . | . . . . Stealth | -11 -10 -9 -8 --------- Run | Yrd Mat Mat Mat Distress Signals 1 | . . 1 . Communications Jammed . | . . . . Distress Signals . | . . . . Times Spotted 45 | . 4 19 22 Peak Tracking Total 20 | . 3 5 20 Tactical Retreats 1 | . 1 . . Traps | -11 -10 -9 -8 ------- Run | Yrd Mat Mat Mat Traps Triggered 1 | . . . 1 Indirectly . | . . . . Trap Hack Attempts . | . . . . Triggered . | . . . . Disarmed . | . . . . Reprogrammed . | . . . . Reused . | . . . . Traps Extracted . | . . . . Installed . | . . . . Triggered . | . . . . Machines | -11 -10 -9 -8 ---------- Run | Yrd Mat Mat Mat Machines Disabled 1 | . . 1 . Max in Single Turn 1 | . . 1 . Machines Repaired . | . . . . Machines Dismantled . | . . . . Machines Sabotaged . | . . . . Overloaded Fab Kills . | . . . . Hacking | -11 -10 -9 -8 --------- Run | Yrd Mat Mat Mat Machines Accessed 3 | . . 2 1 Terminals 1 | . . 1 . Fabricators . | . . . . Repair Stations . | . . . . Recycling Units . | . . . . Scanalyzers 2 | . . 1 1 Garrison Access . | . . . . Total Hacks 11 | . . 9 2 Successful 5 | . . 5 . Failed 6 | . . 4 2 Catastrophic . | . . . . Database Lockouts . | . . . . Manual 2 | . . 2 . Terminals 2 | . . 2 . Fabricators . | . . . . Repair Stations . | . . . . Recycling Units . | . . . . Scanalyzers 9 | . . 7 2 Garrison Access . | . . . . Terminal Hacks . | . . . . Fabricator Hacks . | . . . . Repair Station Hacks . | . . . . Recycling Unit Hacks . | . . . . Scanalyzer 5 | . . 5 . Insert Component 2 | . . 2 . Analyze 3 | . . 3 . Garrison Access Hacks . | . . . . Unauthorized Hacks . | . . . . Terminals . | . . . . Fabricators . | . . . . Repair Stations . | . . . . Recycling Units . | . . . . Scanalyzers . | . . . . Garrison Access . | . . . . Data Cores Recovered . | . . . . Used . | . . . . Hacking Detections 2 | . . 1 1 Full Trace Events . | . . . . Feedback Events . | . . . . Feedback Blocked . | . . . . Robot Schematics Acquired . | . . . . Robots Built . | . . . . Authchips . | . . . . Time . | . . . . Total Robot Build Rating . | . . . . Part Schematics Acquired 2 | . . 2 . Parts Built . | . . . . Authchips . | . . . . Time . | . . . . Total Part Build Rating . | . . . . Parts Repaired . | . . . . Time . | . . . . Parts Recycled . | . . . . Recycled Matter . | . . . . Retrieved Matter . | . . . . Retrieved Components . | . . . . Parts Scanalyzed 2 | . . 2 . Part Schematics Acquired 2 | . . 2 . Parts Damaged . | . . . . Bothacking | -11 -10 -9 -8 ------------ Run | Yrd Mat Mat Mat Used RIF Installer . | . . . . Robots Hacked . | . . . . Non-combat . | . . . . Combat . | . . . . Robot Hacks Applied . | . . . . Relay Couplers Released . | . . . . Fabnet Peak Effective % . | . . . . Robots Rewired . | . . . . Allies Hacked . | . . . . Hacks Repelled . | . . . . Allies | -11 -10 -9 -8 -------- Run | Yrd Mat Mat Mat Total Allies . | . . . . Largest Group . | . . . . Highest-Rated Group . | . . . . Highest-Rated Ally . | . . . . Total Orders . | . . . . Ally Attacks . | . . . . Total Damage . | . . . . Kills . | . . . . Allies Corrupted . | . . . . Allies Melted . | . . . . Intel | -11 -10 -9 -8 ------- Run | Yrd Mat Mat Mat Robot Analysis Total . | . . . . Derelict Logs Recovered . | . . . . Drone Launches . | . . . . Drone Recoveries . | . . . . Exploration | -11 -10 -9 -8 ------------- Run | Yrd Mat Mat Mat Turns Passed 1088 | . 120 717 251 Spaces Moved 586 | 1 60 363 162 Core . | . . . . Treads 198 | . . 196 2 Legs 162 | 1 60 101 . Wheels 226 | . . 66 160 Hover . | . . . . Flight . | . . . . Fastest Speed 90 | 120 120 100 90 Average Speed 125 | 120 120 138 100 Slowest Speed 240 | 120 120 190 240 Overloaded Moves . | . . . . Propulsion Burnouts . | . . . . Robots Hopped . | . . . . Cave-ins Triggered . | . . . . Exploration Rate (%) 17 | 2 18 33 18 Regions Visited 3 Branch Regions . Pre-discovered Areas . | . . . . Known Exits Taken 1 | . . 1 . Unknown Exits Taken 2 | 1 1 . . Scrap Searched . | . . . . Spaces Dug . | . . . . Terrain Destroyed . | . . . . Melee . | . . . . Projectile . | . . . . AOE . | . . . . Terrain Rammed . | . . . . Walls Destroyed . | . . . . Machines Disabled . | . . . . Actions | -11 -10 -9 -8 --------- Run | Yrd Mat Mat Mat Total 757 | . 80 462 215 Wait 20 | . 6 6 8 Move 583 | . 59 362 162 Hop . | . . . . Pick Up 11 | . 1 6 4 Fast Attach 13 | . . 6 7 Attach 10 | . . 2 8 Detach 1 | . . 1 . Swap 9 | . . 6 3 Drop 18 | . . 13 5 Fire 91 | . 14 60 17 Melee . | . . . . Ram 1 | . . . 1 Kick . | . . . . Crush . | . . . . Escape Stasis . | . . . . Rewire . | . . . . Trap . | . . . . Miscellaneous . | . . . . Route ------- -11/Scrapyard -10/Materials -9/Materials -8/Materials History --------- Turn | Location | Event 1 | -11/Scrapyard | Discovered new exit (range 0) 1 | -11/Scrapyard | Entered Materials 95 | -10/Materials | Discovered new exit (range 14) 121 | -10/Materials | Entered another Materials area 121 | -9/Materials | Evolved 2 slots: Propulsion x2 552 | -9/Materials | Build established: Scavenger-Mutant 816 | -9/Materials | Discovered new exit (range 12) 837 | -9/Materials | Identified exit to Materials 838 | -9/Materials | Entered another Materials area 838 | -8/Materials | Evolved 2 slots: Utility x1, Weapon x1 1055 | -8/Materials | Core integrity fell below 50% 1069 | -8/Materials | Core integrity fell below 20% 1089 | -8/Materials | Destroyed by G-47 Trooper with Particle Gun Last Messages --------------- 01062_ G-50 Soldier suffers critical hit (Burn). 01063_ Acquired 53 matter. 01065_ Penetrated by Slug. 01065_ R-06 Scavenger collects Wheel. 01066_ U-05 Engineer lays Concrete. 01066_ X-62 Marksman destroyed. 01067_ U-05 Engineer lays Concrete. 01068_ Penetrated by Slug. 01068_ Acquired Imp. Deuterium Engine. 01069_ U-05 Engineer lays Concrete. 01069_ R-06 Scavenger collects Imp. Carbon-fiber Leg. 01070_ U-05 Engineer lays Concrete. 01070_ Arm. Wheel destroyed. 01075_ Slug penetrates Wall. 01077_ Arm. Wheel destroyed. 01083_ U-05 Engineer builds a Door. 01085_ Hvy. Ion Engine destroyed. 01087_ Slammed into G-47 Trooper. 01088_ ALERT: Security rotation in progress. Map ----- +----------------------------------------------------+ | ?????????????????????????????????????????????????? | | ?????????????????????????????????????????????????? | | ?????????????????????????????????????????????????? | | ?????????????????????????????????????????????????? | | ?????????????????????????????????????????????????? | | ?????????????????????????????????????????????????? | | ?????????????????????????????????????????????????? | | ?????????????????????????????????????????????????? | | ?????????????????????????????????????????????????? | | ?????????????????????????????????????????????????? | | ?????????????????????????????????????????????????? | | ??????? ?????????????????????????????????????????? | | ????? ????????????????????????????????????????? | | ????? ?########???????????????????????????????? | | ????? ?# ????????????????????????????????? | | ?????! ?# " ???????????????????????????????? | | ?????# ## T ""?????#####?????????????????????? | | ?????# ## " "?????? +????????????????????? | | ?????# ## "?????? #????????????????????? | | ?????# #? ?""????? #????????????????????? | | ?????# #? ""?????? #????????????????????? | | ?????# #?? ??????? = #????????????????????? | | ????## ##? ???????? ?????????????????????? | | ????# ###"###########/#######????????????????? | | ##### gg ?????????? | | ########@#######????????????????? | | ?#### %% #??????# ?????????????????????? | | ?# # #####/####????# """???????????????????? | | ?# "###"### #????# "Y" #?????????????????? | | ## " ! " ! #????# #?????????????????? | | # "[ !%[ # #????# #?????????????????? | | " != # #????# Y #?????????????????? | | # " * # """ #????##### ##?????????????????? | | # "%! # "R #?????????##??????????????????? | | # "= # """ = #?????????????????????????????? | | ## ""#"%""# "" #?????????????????????????????? | | ?### % " # #?????????????????????????????? | | ???# # #############?????????????????????????????? | | ???### #] #???????????????????????????????? | | ?????# # """ #???????????????????????????????? | | ###### #""" """ #???????????????????????????????? | | # # #""" """ #???????????????????????????????? | | # # #"S #???????????????????????????????? | | # # #""" #???????????????????????????????? | | # # # "" = #???????????????????????????????? | | # # # =#???????????????????????????????? | | # "" # #####+########+#+#????????????????????????? | | # "Y + != #????????????????????????? | | # "" # % %! +????????????????????????? | | # # !* * #????????????????????????? | +----------------------------------------------------+ Best States ------------- Heat Dissipation 38 Energy Generation 14 Energy Capacity 280 Matter Stores 300 Matter Capacity 300 Sight Range 16 Terrain Scan Density 10 Evasion (%) 55 Recoil Reduction 4 Item Schematics ----------------- Arm. Wheel | -9/Materials | Scanalyzed Imp. Treads | -9/Materials | Scanalyzed Robot Schematics ------------------ None Fabricated ------------ Nothing Alien Tech Used ----------------- None Achievements -------------- None Challenges ------------ None Game ------ Seed DisposableAlertCorpse Manual? 0 Play Time 00:11:39 Cumulative 135.1 hours Start 2024.04.29 @ 14:54:32 End 2024.04.29 @ 15:03:07 Sessions 1 Manual Loads 0 Difficulty Rogue Special Mode None Game No. 260 Rogue 260 Adventurer 0 Explorer 0 Win Type - Total 0 Types 0/0/0/0/0/0/0/0/0 Lore% 35 Gallery% 48 Achievement% 34 Wizard Run 0 Options --------- Layout 1 ASCII 0 Keyboard 0 Movement Mouse Keybinds 0 Fullscreen 1 Font 24/Smallcaps Map View 50x40 Zoom Use 0% Tactical HUD 1 Map Filters NONE Filters NONE Steam 1 RUN: a94919da-df53-4a9f-98ee-cf03bed7baab